bitfinex-derivatives/quotes_ETHF0:USTF0_20260131
["timestamp","ask_amount","ask_price","bid_price","bid_amount"]
[1769849320967,3.807,2629.2,2627.5,3.93563828]
[1769849321167,0.00419135,2629.1,2627.5,3.93563828]
[1769849322768,3.807,2629.6,2627.5,3.93563828]
[1769849323262,0.00428835,2629.8,2627.7,3.93604057]
[1769849323466,3.81128835,2629.8,2627.7,3.93604057]
[1769849323678,3.81128835,2629.8,2627.6,8.51081874]
[1769849323679,3.81128835,2629.8,2627.9,3.93604057]
[1769849324169,0.00419135,2629.7,2627.9,3.93604057]
[1769849324573,0.00419135,2629.6,2627.9,3.93604057]
[1769849324764,3.81128835,2629.8,2627.9,3.93604057]
[1769849324765,0.00419135,2629.7,2627.9,3.93604057]
[1769849325164,0.00419135,2629.6,2628.0,8.32022874]
[1769849325377,0.00419135,2629.6,2628.1,3.93604057]
[1769849325580,0.00419135,2629.5,2628.1,3.93604057]
[1769849325768,0.19047,2629.4,2628.1,3.93604057]
[1769849325968,0.00419135,2628.9,2627.8,3.93604057]
[1769849326376,0.1905,2629.0,2627.8,3.93604057]
[1769849326577,0.07076171,2628.6,2627.4,3.93395792]
[1769849326778,3.807,2628.5,2627.4,3.93395792]
[1769849326976,0.00419135,2628.1,2627.4,3.93395792]
[1769849327179,0.00419135,2628.0,2627.4,3.93395792]
[1769849327365,3.807,2628.5,2627.4,3.93395792]
[1769849327571,0.00419135,2627.9,2627.3,0.00387075]
[1769849327879,0.00419135,2627.8,2627.3,0.00387075]
[1769849328071,0.00419135,2627.5,2627.3,0.00387075]
[1769849328372,0.00377332,2627.9,2627.3,3.93782867]
[1769849329268,3.807,2628.8,2627.3,3.93782867]
[1769849329779,0.19048,2629.2,2627.3,3.93782867]
[1769849330080,3.807,2629.1,2627.3,3.93782867]
[1769849330271,3.81053188,2629.1,2627.4,8.32022874]
[1769849330573,0.00353188,2629.1,2627.5,3.93395792]
[1769849332686,0.00353188,2629.1,2628.1,3.93395792]
[1769849336380,0.00353188,2629.1,2628.3,3.93395792]
[1769849337182,0.15945672,2630.1,2628.3,3.93395792]
[1769849337183,0.17859794,2630.4,2628.4,3.93395792]
[1769849337380,3.807,2630.4,2628.4,3.93395792]
[1769849337687,3.807,2630.4,2628.8,3.93395792]
[1769849337887,3.807,2630.4,2629.0,3.93395792]
[1769849338079,3.80980703,2630.4,2629.0,3.93395792]
[1769849338581,0.00280703,2630.4,2629.0,3.93395792]
[1769849341785,0.00280703,2630.4,2629.2,3.93395792]
[1769849341989,0.00280703,2630.4,2629.6,3.93395792]
[1769849342590,3.813,2632.3,2629.6,3.93395792]
[1769849342591,0.25312825,2631.7,2629.6,3.93395792]
[1769849342789,3.807,2631.6,2629.7,3.93395792]
[1769849343184,3.807,2631.6,2629.8,3.93395792]
[1769849343382,0.19029,2631.9,2629.8,3.93395792]
[1769849343584,3.807,2631.9,2630.1,3.93395792]
[1769849343790,3.81170975,2631.9,2630.1,3.93395792]
[1769849343984,3.81170975,2631.9,2630.3,8.32022874]
[1769849344191,0.00470975,2631.9,2630.5,3.93395792]
[1769849344490,0.00470975,2631.9,2630.7,3.93395792]
[1769849348999,3.805,2632.7,2630.7,3.93395792]
[1769849349305,3.805,2633.0,2630.7,4.12432792]
[1769849349505,3.805,2633.0,2630.8,3.78133039]
[1769849350105,3.80953605,2633.0,2630.8,3.78133039]
[1769849350296,0.00453605,2633.0,2631.0,3.78133039]
[1769849350503,0.00453605,2633.0,2631.2,3.78133039]
[1769849350799,0.00453605,2633.0,2631.2,3.78482911]
[1769849351904,3.705,2633.9,2631.4,3.78133039]
[1769849352203,3.705,2633.9,2631.4,3.97165039]
[1769849353001,0.46633077,2633.6,2631.4,3.97165039]
[1769849353698,0.19016,2633.7,2631.4,3.97165039]
[1769849353894,3.804,2633.6,2631.4,3.97165039]
[1769849354497,0.51386482,2633.5,2631.4,3.97165039]
[1769849354704,0.51386482,2633.0,2631.4,3.78133039]
[1769849354904,0.70407482,2633.0,2631.4,3.78133039]
[1769849355204,0.51386482,2632.6,2631.4,3.78133039]
[1769849355508,3.803,2632.5,2631.4,3.78133039]
[1769849356397,0.19023,2632.7,2631.4,3.78133039]
[1769849356600,3.803,2632.9,2631.4,3.78133039]
[1769849358009,0.52419942,2632.8,2631.4,3.78133039]
[1769849358700,0.71441942,2632.8,2631.4,3.78133039]
[1769849359807,0.5178204,2632.5,2631.2,0.00349872]
[1769849359999,0.19021,2633.0,2631.2,3.78482911]
[1769849360202,3.803,2632.9,2631.2,3.78482911]
[1769849360400,0.49183817,2632.8,2631.2,3.78482911]
[1769849360608,0.19022,2632.9,2631.2,3.78482911]
[1769849360902,0.49183817,2633.2,2631.2,3.78482911]
[1769849361099,0.19017,2633.6,2631.2,3.78482911]
[1769849362208,0.68200817,2633.6,2631.2,3.78482911]
[1769849362502,0.19017,2633.6,2631.2,3.97516911]
[1769849363204,0.00480763,2633.9,2631.4,3.78133039]
[1769849363411,3.80780763,2633.9,2631.4,3.78133039]
[1769849363607,3.80780763,2633.9,2631.7,3.97163039]
[1769849363801,0.00480763,2633.9,2631.7,3.97163039]
[1769849364907,0.00480763,2633.9,2632.1,3.78133039]
[1769849365104,0.00480763,2633.9,2632.3,3.78133039]
[1769849366400,4.5474323,2636.3,2632.3,3.78133039]
[1769849366606,0.46150819,2635.5,2632.9,3.78133039]
[1769849367203,0.65153819,2635.5,2632.9,3.97154039]
[1769849367408,3.802,2635.4,2632.9,3.97154039]
[1769849367803,3.802,2635.4,2632.7,6.032]
[1769849367804,0.00380158,2635.5,2633.1,3.78133039]
[1769849368106,3.80580158,2635.5,2633.1,3.78456965]
[1769849368312,0.00380158,2635.5,2633.1,3.78456965]
[1769849369508,0.59645457,2635.5,2633.1,3.78456965]
[1769849369715,0.40262299,2635.4,2633.1,3.78456965]
[1769849370011,0.40262299,2635.1,2633.1,3.78456965]
[1769849370713,0.42531402,2634.9,2633.1,3.78456965]
[1769849371007,0.00380158,2635.5,2633.1,3.78456965]
[1769849371210,0.4291156,2635.5,2633.1,3.97476965]
[1769849371413,0.42531402,2635.4,2633.1,3.78456965]
[1769849371811,0.19004,2635.3,2633.1,3.78456965]
[1769849372118,3.85144719,2634.2,2631.5,0.19031]
[1769849372414,3.85144719,2634.0,2631.7,1.19396484]
[1769849373005,3.85144719,2634.0,2631.7,1.19740587]
[1769849374011,3.85144719,2634.0,2631.8,3.78133039]
[1769849374207,3.801,2634.1,2631.8,3.78133039]
[1769849374208,3.85144719,2633.8,2631.8,3.78133039]
[1769849374404,4.04160719,2633.7,2631.8,3.78133039]
[1769849375017,3.85144719,2633.2,2631.8,3.78133039]
[1769849375307,3.85535686,2633.2,2631.8,3.78133039]
[1769849376910,0.00390967,2633.2,2631.8,3.78133039]
[1769849377107,3.59496727,2633.2,2631.8,3.78133039]
[1769849378116,0.00390967,2633.2,2631.8,3.78133039]
[1769849379616,3.67866158,2633.2,2631.8,3.78133039]
[1769849380120,3.67866158,2633.2,2631.7,0.00344103]
[1769849380323,3.67475191,2632.9,2631.7,0.00344103]
[1769849380815,3.86496191,2632.9,2630.6,3.90958892]
[1769849381824,3.86496191,2632.9,2630.6,3.91306427]
[1769849382226,0.19024,2632.5,2630.6,3.91306427]
[1769849382526,3.67475191,2632.3,2630.6,3.91306427]
[1769849385428,3.802,2632.2,2630.6,3.91306427]
[1769849385727,7.47675191,2632.2,2630.6,3.91306427]
[1769849385929,3.67475191,2632.1,2630.6,3.91306427]
[1769849386731,3.67475191,2631.9,2630.6,3.91306427]
[1769849387027,3.67475191,2631.7,2630.6,0.00347535]
[1769849387223,3.67475191,2631.3,2629.9,3.90958892]
[1769849387425,3.67475191,2631.0,2628.9,9.91103725]
[1769849387617,3.86511191,2631.0,2629.5,3.90958892]
[1769849388016,3.67475191,2630.8,2629.5,3.90958892]
[1769849388218,3.802,2630.7,2629.5,3.91328748]
[1769849389030,7.47675191,2630.7,2629.5,3.91328748]
[1769849390031,3.802,2630.7,2629.5,3.91328748]
[1769849391326,3.80751586,2631.0,2629.5,3.91328748]
[1769849393332,3.67926777,2631.0,2629.5,3.91328748]
[1769849393633,3.803,2630.9,2629.5,3.91328748]
[1769849396221,0.00451586,2631.0,2629.5,3.91328748]
[1769849396428,0.00451586,2631.0,2629.5,4.10374748]
[1769849396625,3.86505191,2631.8,2629.7,4.10002892]
[1769849397735,3.86928285,2631.8,2629.7,4.10002892]
[1769849398127,3.67475191,2631.3,2629.7,3.90958892]
[1769849398332,3.86508191,2631.3,2629.7,3.90958892]
[1769849398534,3.86509191,2631.2,2629.7,3.90958892]
[1769849400232,3.67475191,2630.8,2629.5,0.00369856]
[1769849400432,7.47875191,2630.7,2629.5,0.00369856]
[1769849400628,3.804,2630.6,2629.5,0.00369856]
[1769849401228,3.67475191,2631.1,2629.5,3.91328748]
[1769849401429,0.00423094,2631.8,2630.2,3.90958892]
[1769849401636,0.00423094,2631.8,2630.2,4.09999892]
[1769849402136,0.00423094,2631.8,2630.2,3.90958892]
[1769849402334,3.67898285,2631.8,2630.2,3.90958892]
[1769849402723,3.67475191,2631.6,2630.2,3.90958892]
[1769849402928,3.67475191,2631.1,2629.6,3.90958892]
[1769849403123,3.67475191,2630.9,2629.6,3.90958892]
[1769849403438,3.67475191,2630.9,2629.5,0.00369856]
[1769849405337,3.86511191,2630.9,2629.5,0.00369856]
[1769849406235,3.86508191,2631.3,2629.5,3.91328748]
[1769849406536,3.67475191,2631.2,2629.5,3.91328748]
[1769849408434,0.19033,2631.3,2629.5,3.91328748]
[1769849408639,7.43921612,2631.5,2629.5,3.91328748]
[1769849408836,2.23523094,2631.8,2629.9,3.5911794]
[1769849408837,0.00423094,2631.8,2629.9,3.5911794]
[1769849409335,3.804,2631.7,2629.9,3.5911794]
[1769849409542,7.43921612,2631.7,2629.9,3.5911794]
[1769849410136,0.00423094,2631.8,2630.4,3.5911794]
[1769849411633,3.804,2632.8,2630.9,3.5911794]
[1769849411842,3.804,2632.8,2631.1,3.5911794]
[1769849412256,3.63521612,2633.2,2631.4,3.5911794]
[1769849412749,0.00484406,2633.2,2631.5,3.5911794]
[1769849412954,0.00484406,2633.2,2631.5,3.7814894]
[1769849413249,0.00484406,2633.2,2631.9,3.5911794]
[1769849413442,3.64006018,2633.2,2631.9,3.5911794]
[1769849417758,3.803,2633.1,2631.9,3.5911794]
[1769849417951,3.803,2633.1,2631.4,0.00331699]
[1769849418150,3.63521612,2633.0,2631.4,0.00331699]
[1769849420049,0.00484406,2633.2,2631.5,3.5911794]
[1769849420255,0.00484406,2633.2,2631.5,3.7814894]
[1769849421250,0.00484406,2633.2,2630.6,11.28877107]
[1769849421251,3.63521612,2632.6,2631.0,3.5911794]
[1769849421447,3.63521612,2632.9,2631.1,3.5911794]
[1769849421654,0.00484406,2633.2,2631.1,3.5911794]
[1769849421655,3.64006018,2633.2,2631.1,3.5911794]
[1769849422251,3.64006018,2633.2,2631.1,3.59406118]
[1769849423949,3.63521612,2632.8,2631.1,3.59406118]
[1769849426464,3.63521612,2632.4,2631.1,0.00288178]
[1769849426658,3.63521612,2632.2,2631.1,0.00288178]
[1769849427757,3.63521612,2632.8,2631.1,3.59406118]
[1769849427957,3.802,2632.9,2631.1,3.59406118]
[1769849429463,3.63521612,2632.8,2631.1,3.59406118]
[1769849433966,0.19022,2632.9,2631.1,3.59406118]
[1769849434268,3.63521612,2633.1,2631.1,3.78440118]
[1769849435365,3.63521612,2633.1,2631.2,3.5911794]
[1769849436369,3.63521612,2633.1,2631.3,3.5911794]
[1769849437164,3.63521612,2633.1,2631.5,3.88518795]
[1769849437366,0.00484406,2633.2,2631.5,3.88518795]
[1769849437764,0.00484406,2633.2,2631.7,3.88518795]
[1769849438175,0.00484406,2633.2,2631.7,12.20541669]
[1769849438374,0.00484406,2633.2,2631.8,3.88518795]
[1769849439476,0.00484406,2633.2,2631.9,3.66424315]
[1769849439871,0.00484406,2633.2,2632.1,3.66424315]
[1769849440079,0.00484406,2633.2,2632.0,8.32022874]
[1769849440080,3.55087191,2633.2,2632.0,8.32022874]
[1769849440374,3.55087191,2633.2,2631.8,11.98447189]
[1769849440578,3.55087191,2633.2,2631.9,3.66424315]
[1769849441070,3.55087191,2633.2,2632.0,3.66424315]
[1769849441578,0.00484406,2633.2,2632.0,3.66424315]
[1769849441781,0.00484406,2633.2,2632.1,3.66424315]
[1769849442265,0.00484406,2633.2,2632.2,3.66424315]
[1769849442671,0.00484406,2633.2,2632.2,11.98447189]
[1769849442867,0.00484406,2633.2,2632.3,3.66424315]
[1769849443381,3.55087191,2633.2,2632.1,8.32022874]
[1769849443880,3.55087191,2633.2,2632.1,3.66424315]
[1769849444178,3.55087191,2633.2,2632.2,3.66424315]
[1769849446577,0.00484406,2633.2,2632.2,3.66424315]
[1769849446771,3.55087191,2633.2,2632.2,3.66424315]
[1769849450482,0.00484406,2633.2,2632.2,3.66424315]
[1769849451476,0.00484406,2633.2,2632.4,3.66424315]
[1769849458587,3.54602785,2633.6,2632.4,3.66424315]
[1769849458588,3.54602785,2634.1,2632.4,3.66424315]
[1769849458789,3.54602785,2634.1,2632.8,3.66424315]
[1769849459489,3.54888118,2634.1,2632.8,3.66424315]
[1769849461589,3.54888118,2634.1,2632.9,3.66424315]
[1769849462285,3.54602785,2634.9,2632.9,3.66424315]
[1769849462486,3.73607785,2635.2,2632.9,3.85445315]
[1769849462684,3.54602785,2635.2,2633.6,3.66424315]
[1769849462883,3.54602785,2635.2,2633.6,3.43600315]
[1769849463083,3.54602785,2635.2,2633.6,8.32022874]
[1769849463487,0.00464629,2635.2,2633.6,8.32331163]
[1769849463985,0.00464629,2635.2,2633.9,8.32022874]
[1769849464391,0.00464629,2635.2,2634.0,2.945]
[1769849464786,3.801,2635.4,2634.1,3.66424315]
[1769849465087,3.72380293,2636.3,2634.5,3.66424315]
[1769849465280,3.72380293,2636.3,2634.7,3.66424315]
[1769849465994,3.72851995,2636.3,2634.7,3.66424315]
[1769849466294,0.1824921,2636.3,2634.7,3.66424315]
[1769849466694,3.75305747,2637.1,2634.8,3.60154776]
[1769849466995,3.75305747,2637.1,2635.0,3.60154776]
[1769849467386,3.75305747,2637.1,2635.1,8.32022874]
[1769849467588,3.75305747,2637.1,2635.2,3.60154776]
[1769849467892,0.00481644,2637.1,2635.2,3.60154776]
[1769849468286,0.00481644,2637.1,2635.3,8.32022874]
[1769849468486,0.00481644,2637.1,2635.4,3.60154776]
[1769849468688,0.00481644,2637.1,2635.6,3.60154776]
[1769849468888,0.00481644,2637.1,2635.6,3.60522156]
[1769849469084,3.75305747,2637.9,2635.9,3.60154776]
[1769849469289,3.75305747,2638.6,2636.2,3.60154776]
[1769849469484,3.75305747,2638.0,2636.2,3.60154776]
[1769849469685,3.75305747,2637.9,2636.2,3.60154776]
[1769849469888,3.75305747,2637.9,2636.3,3.60154776]
[1769849470097,0.00290324,2637.9,2636.3,3.60154776]
[1769849470286,3.75596071,2637.9,2636.3,3.60154776]
[1769849473394,3.799,2638.4,2636.6,3.79149776]
[1769849473596,3.75305747,2638.3,2636.8,3.60154776]
[1769849473895,3.75305747,2638.3,2636.1,3.60154776]
[1769849474293,3.75305747,2638.3,2636.5,3.60154776]
[1769849474489,3.7577204,2638.3,2636.5,3.60154776]
[1769849475296,3.75305747,2638.0,2636.5,3.60154776]
[1769849476604,3.7577204,2638.3,2636.5,3.60154776]
[1769849477692,3.75305747,2637.9,2636.5,3.60154776]
[1769849478194,3.7577204,2638.3,2636.5,3.60154776]
[1769849479597,3.7577204,2638.3,2636.9,3.60154776]
[1769849479799,3.7577204,2638.3,2636.5,3.60154776]
[1769849481003,3.75305747,2639.2,2637.3,3.60154776]
[1769849481502,3.75305747,2639.2,2637.5,3.60154776]
[1769849481696,3.75305747,2639.6,2637.7,3.60154776]
[1769849481892,3.75649723,2639.6,2637.7,3.79434121]
[1769849482487,3.75649723,2639.6,2637.7,3.60447121]
[1769849482694,3.75305747,2639.3,2637.7,3.60447121]
[1769849483092,3.75649723,2639.6,2637.7,3.60447121]
[1769849484202,0.00343976,2639.6,2637.9,3.60154776]
[1769849484398,0.00343976,2639.6,2637.9,3.79139776]
[1769849484706,3.75649723,2639.6,2637.9,3.79139776]
[1769849484997,3.75649723,2639.6,2637.9,3.60154776]
[1769849485200,0.00343976,2639.6,2637.9,3.60154776]
[1769849485498,3.75649723,2639.6,2638.1,3.60154776]
[1769849486095,3.94622723,2639.6,2638.1,3.60154776]
[1769849486300,3.94622723,2639.6,2637.7,0.00292345]
[1769849486301,3.94283747,2639.0,2637.7,0.00292345]
[1769849486694,3.94283747,2639.0,2637.7,3.60447121]
[1769849486695,3.75305747,2639.0,2637.7,3.60447121]
[1769849486895,3.75305747,2639.5,2637.7,3.60447121]
[1769849487803,0.00343976,2639.6,2638.1,3.60154776]
[1769849488096,3.75649723,2639.6,2638.1,3.60154776]
[1769849488297,3.75305747,2640.3,2638.6,3.60154776]
[1769849489198,3.75652372,2640.3,2638.6,3.60154776]
[1769849489604,3.75652372,2640.3,2638.6,3.79134776]
[1769849489800,0.00346625,2640.3,2638.6,3.79134776]
[1769849490109,0.00346625,2640.3,2639.0,3.60154776]
[1769849490298,3.75652372,2640.3,2639.0,3.60154776]
[1769849490707,3.75652372,2640.3,2638.4,3.60154776]
[1769849490908,3.94275747,2640.1,2638.4,3.60154776]
[1769849491103,3.75305747,2639.9,2638.4,3.60154776]
[1769849492707,3.75305747,2639.4,2637.8,3.60154776]
[1769849493611,3.75305747,2639.4,2637.7,0.00292345]
[1769849493805,3.75305747,2639.2,2637.7,0.00292345]
[1769849494004,3.75305747,2639.2,2637.7,3.60447121]
[1769849494798,3.75305747,2638.9,2637.7,0.00292345]
[1769849495708,3.75305747,2639.3,2637.7,3.60447121]
[1769849496704,3.75305747,2639.7,2637.7,3.79434121]
[1769849497002,3.64739028,2639.5,2637.7,3.60447121]
[1769849498307,3.64739028,2640.2,2638.1,3.79678084]
[1769849498506,3.64739028,2640.2,2638.5,3.79678084]
[1769849498706,3.793,2640.5,2638.5,3.79678084]
[1769849498910,3.64739028,2640.6,2638.8,3.79678084]
[1769849499102,3.64739028,2640.6,2639.0,3.79678084]
[1769849499502,3.64739028,2640.6,2639.0,3.98655084]
[1769849499707,3.56751612,2640.9,2639.2,3.64076706]
[1769849500111,3.56751612,2640.9,2639.4,3.64076706]
[1769849500313,3.56751612,2641.8,2639.5,3.83050706]
[1769849500609,3.56751612,2641.8,2640.0,3.64076706]
[1769849500610,3.57142367,2641.8,2640.0,3.64076706]
[1769849500808,3.57142367,2641.8,2640.0,3.64389673]
[1769849501414,0.00390755,2641.8,2640.5,3.64076706]
[1769849501613,3.56751612,2642.2,2640.5,3.64076706]
[1769849502506,3.56751612,2641.9,2640.1,3.64076706]
[1769849502705,3.57217419,2641.9,2640.1,3.64076706]
[1769849502908,3.76174419,2641.9,2640.1,3.64076706]
[1769849503111,0.18958,2641.7,2640.0,0.00312967]
[1769849503315,3.56751612,2641.4,2640.0,0.00312967]
[1769849504310,3.75711612,2641.4,2640.0,0.00312967]
[1769849504812,3.56751612,2641.4,2640.0,3.64389673]
[1769849505006,6.016,2641.6,2640.0,3.64389673]
[1769849505202,7.35951612,2641.6,2640.0,3.64389673]
[1769849505415,3.57217419,2641.9,2640.5,3.64076706]
[1769849505821,3.57217419,2641.9,2640.1,3.64076706]
[1769849506316,3.76174419,2641.9,2640.0,0.00312967]
[1769849506813,3.56751612,2641.7,2640.0,0.00312967]
[1769849507014,3.56751612,2641.7,2639.4,3.64076706]
[1769849507015,3.56751612,2640.8,2639.0,3.64076706]
[1769849507314,3.56751612,2641.0,2639.5,1.77827335]
[1769849507503,3.56751612,2641.0,2639.6,3.64076706]
[1769849508023,3.56751612,2641.0,2639.6,3.64507154]
[1769849508414,3.75714612,2641.0,2639.6,0.00430448]
[1769849508719,3.56751612,2641.0,2639.6,0.00430448]
[1769849508910,3.56751612,2641.0,2639.6,3.64507154]
[1769849509413,3.56751612,2641.0,2639.6,0.00430448]
[1769849511007,3.56751612,2641.0,2638.5,1.77827335]
[1769849511008,3.75718612,2640.5,2638.5,3.64076706]
[1769849511312,3.56751612,2640.3,2638.5,3.64076706]
[1769849511614,3.791,2640.4,2638.4,3.791]
[1769849511615,3.56751612,2640.1,2638.4,3.791]
[1769849512114,3.56751612,2640.1,2638.4,7.43549285]
[1769849512314,3.56751612,2640.1,2638.6,3.64076706]
[1769849512713,3.56751612,2640.1,2638.5,3.64076706]
[1769849513426,3.56751612,2639.8,2638.4,0.00372579]
[1769849513715,3.56751612,2639.8,2638.4,3.64449285]
[1769849513716,0.00483091,2639.8,2638.4,3.64449285]
[1769849513917,3.56751612,2640.6,2638.7,3.64076706]
[1769849514121,3.56751612,2640.6,2638.7,3.83055706]
[1769849514319,3.56751612,2641.4,2639.2,3.64076706]
[1769849514514,3.56751612,2641.4,2639.8,3.64076706]
[1769849514910,3.57209539,2641.4,2639.8,3.64076706]
[1769849515320,0.00457927,2641.4,2639.8,3.64076706]
[1769849515524,0.00457927,2641.4,2640.0,3.64076706]
[1769849515924,3.56751612,2641.3,2640.0,3.64076706]
[1769849516116,3.56751612,2641.3,2639.8,3.64076706]
[1769849516619,3.56751612,2641.1,2638.7,21.00930832]
[1769849516813,3.56751612,2641.0,2638.9,3.64076706]
[1769849517012,3.56751612,2641.3,2639.1,3.64076706]
[1769849518019,3.56751612,2641.3,2639.6,3.64076706]
[1769849518224,0.00457927,2641.4,2639.6,3.64076706]
[1769849518724,3.57209539,2641.4,2639.6,3.64076706]
[1769849519621,1.77827335,2642.9,2639.5,4.67227335]
[1769849519622,3.56751612,2642.1,2640.2,3.64076706]
[1769849519823,3.56751612,2642.1,2640.3,3.64076706]
[1769849520323,3.56751612,2642.1,2640.2,3.791]
[1769849520324,3.75707612,2642.1,2640.2,3.791]
[1769849520525,3.76005264,2642.1,2640.2,7.43620182]
[1769849520828,3.76005264,2642.1,2640.3,3.64076706]
[1769849521230,3.76005264,2642.1,2640.2,3.79543476]
[1769849521231,3.56751612,2641.6,2640.2,0.00443476]
[1769849521524,3.56751612,2641.4,2640.2,0.00443476]
[1769849521826,3.56751612,2641.4,2640.2,3.64520182]
[1769849522526,3.56751612,2642.0,2640.2,3.64520182]
[1769849523329,0.00297652,2642.1,2640.2,3.64520182]
[1769849523330,0.00297652,2642.1,2640.7,3.64076706]
[1769849523520,3.57049264,2642.1,2640.7,3.64076706]
[1769849523922,3.57049264,2642.1,2640.5,0.18966]
[1769849523923,3.57049264,2642.1,2640.3,3.64076706]
[1769849524725,3.56751612,2641.8,2640.2,0.00443476]
[1769849525026,3.56751612,2641.6,2640.2,0.00443476]
[1769849525219,3.75710612,2641.6,2640.2,0.00443476]
[1769849526228,3.56751612,2641.4,2640.2,0.00443476]
[1769849526429,3.56751612,2641.3,2640.2,0.00443476]
[1769849528235,3.79,2641.4,2640.2,3.81791328]
[1769849529832,3.79,2641.4,2640.2,4.00760328]
[1769849530023,3.57311526,2642.1,2640.6,3.81347852]
[1769849530223,0.00297652,2642.1,2640.6,4.00312852]
[1769849530826,3.57311526,2642.1,2640.6,4.00312852]
[1769849531328,3.57311526,2642.1,2640.2,0.00443476]
[1769849531636,3.57013874,2641.7,2640.2,0.00443476]
[1769849531839,3.57013874,2641.6,2640.2,0.00443476]
[1769849532439,3.57013874,2641.1,2639.4,3.81347852]
[1769849532930,3.57013874,2641.1,2639.3,3.81347852]
[1769849533130,4.32002714,2643.2,2641.0,2.43696986]
[1769849533337,3.92770507,2643.0,2641.1,6.012]
[1769849533528,2.92770507,2643.0,2641.2,0.1]
[1769849533727,2.19560798,2642.9,2641.2,3.89]
[1769849533927,3.795,2643.6,2640.7,8.32022874]
[1769849534122,0.18953,2642.4,2640.7,0.00299015]
[1769849534330,3.79,2642.3,2640.7,0.00299015]
[1769849534633,3.79,2642.3,2639.4,3.79]
[1769849534634,3.7872,2641.5,2639.4,11.68158621]
[1769849534833,0.18958,2641.7,2639.5,1.11292924]
[1769849535036,2.19560798,2641.6,2639.5,1.11292924]
[1769849535230,5.98280798,2642.1,2639.7,1.11292924]
[1769849535430,5.98710403,2642.1,2639.7,7.89541347]
[1769849535639,3.57013874,2642.0,2640.0,1.11292924]
[1769849536034,3.57013874,2641.8,2640.0,1.11292924]
[1769849537337,2.19560798,2641.7,2640.0,1.11292924]
[1769849537535,3.57013874,2641.6,2640.0,1.11292924]
[1769849538439,2.19560798,2641.5,2640.0,7.89158621]
[1769849538741,3.57013874,2641.4,2640.0,7.89158621]
[1769849539434,2.19560798,2641.3,2640.0,7.89158621]
[1769849540247,5.76574672,2641.3,2640.0,7.89158621]
[1769849540541,3.57013874,2641.2,2640.0,7.89158621]
[1769849540745,3.57443479,2642.1,2640.7,6.77865697]
[1769849540934,3.57443479,2642.1,2640.5,0.18966]
[1769849540935,0.10296588,2642.0,2640.8,6.77865697]
[1769849541441,4.03067096,2642.0,2640.9,6.77865697]
[1769849541740,0.00429605,2642.1,2640.9,6.77865697]
[1769849542133,0.10726193,2642.1,2641.0,6.96828697]
[1769849542333,0.00429605,2642.1,2641.2,6.77865697]
[1769849542643,3.90931661,2642.0,2641.1,6.77865697]
[1769849542847,7.69651661,2642.0,2640.9,6.77865697]
[1769849543136,0.10296588,2641.9,2641.1,6.77865697]
[1769849543341,4.01228249,2641.9,2641.2,6.77865697]
[1769849543643,3.7872,2641.2,2640.5,3.789]
[1769849543943,3.7872,2641.5,2640.4,12.13370726]
[1769849544142,3.89016588,2641.5,2640.5,12.13370726]
[1769849544442,0.10296588,2641.5,2640.5,3.81347852]
[1769849544632,3.7872,2641.3,2640.5,3.81347852]
[1769849544836,3.7872,2641.2,2640.5,3.81347852]
[1769849545328,3.57443479,2642.1,2640.6,3.81347852]
[1769849545532,3.7872,2641.8,2640.6,3.81347852]
[1769849545739,3.57443479,2642.1,2640.6,3.81347852]
[1769849545740,3.67310462,2642.0,2640.6,3.81347852]
[1769849545937,3.7872,2641.5,2640.5,8.32022874]
[1769849546132,3.7872,2641.5,2640.3,12.13370726]
[1769849546339,3.57443479,2642.1,2640.4,4.00314852]
[1769849546537,7.46030462,2641.9,2640.6,12.13370726]
[1769849546839,3.67310462,2641.9,2640.6,3.81347852]
[1769849547034,3.7872,2641.6,2640.6,3.81347852]
[1769849547436,0.10296588,2641.5,2640.6,3.81347852]
[1769849547743,3.89016588,2641.8,2640.8,3.81347852]
[1769849548034,3.67310462,2642.0,2640.8,3.81347852]
[1769849548242,3.7872,2641.4,2640.7,8.32022874]
[1769849548430,3.7872,2641.4,2640.5,8.32022874]
[1769849548635,0.10296588,2641.3,2640.5,8.32022874]
[1769849548835,3.57443479,2642.1,2640.6,3.81347852]
[1769849549039,2.3972,2641.5,2640.5,8.32022874]
[1769849549343,2.3972,2641.2,2640.4,8.32022874]
[1769849549538,2.3972,2641.4,2640.4,8.32022874]
[1769849549742,2.3972,2641.3,2640.4,8.32022874]
[1769849550042,2.3972,2641.3,2640.3,8.32022874]
[1769849550246,2.3972,2641.2,2640.3,12.13370726]
[1769849550435,2.3972,2641.7,2640.6,3.81347852]
[1769849550635,3.57443479,2642.1,2640.6,3.81347852]
[1769849551141,2.3972,2641.9,2640.6,3.81347852]
[1769849551341,2.3972,2641.8,2640.7,3.81347852]
[1769849551640,2.3972,2641.6,2640.7,3.81347852]
[1769849552043,2.3972,2641.3,2640.8,12.13370726]
[1769849552245,2.3972,2641.8,2640.8,12.13370726]
[1769849552443,2.3972,2641.5,2640.8,12.13370726]
[1769849552745,0.00429605,2642.1,2640.9,3.81347852]
[1769849552945,0.00429605,2642.1,2641.2,3.81347852]
[1769849553347,3.57443479,2642.1,2641.1,8.32022874]
[1769849553748,3.57443479,2642.1,2640.5,3.92770508]
[1769849554743,0.00429605,2642.1,2640.0,3.92735484]
[1769849554947,0.00429605,2642.1,2639.9,9.72053725]
[1769849555249,3.795,2641.9,2639.7,3.9311821]
[1769849555439,0.18961,2641.3,2639.7,3.9311821]
[1769849555639,3.795,2641.7,2639.7,0.00382726]
[1769849555848,0.18963,2641.0,2639.7,0.00382726]
[1769849556151,3.789,2640.9,2639.7,0.00382726]
[1769849556443,3.97864,2640.9,2639.7,0.00382726]
[1769849556648,7.584,2640.9,2639.7,0.00382726]
[1769849557254,0.18967,2640.4,2638.5,3.93102027]
[1769849557446,0.18968,2640.3,2638.5,3.93102027]
[1769849557641,7.584,2640.9,2638.5,3.93102027]
[1769849557642,0.18969,2640.2,2638.5,3.93102027]
[1769849558347,0.19423684,2640.2,2638.5,3.93373337]
[1769849558550,0.00454684,2640.2,2638.5,3.93373337]
[1769849559152,6.012,2640.1,2638.5,3.93373337]
[1769849560149,6.2017,2640.1,2638.5,0.0027131]
[1769849560549,9.807,2640.1,2638.5,0.0027131]
[1769849560850,0.18972,2639.8,2638.5,0.0027131]
[1769849561438,0.00454684,2640.2,2638.8,0.00382726]
[1769849561439,3.79,2640.0,2638.8,0.00382726]
[1769849561644,3.79,2640.0,2638.8,3.92857384]
[1769849562549,0.18971,2639.9,2638.5,0.0027131]
[1769849563256,0.18971,2639.9,2638.5,3.93128694]
[1769849564057,3.98071,2639.9,2638.5,3.9351142]
[1769849564557,3.98071,2639.9,2638.5,3.93128694]
[1769849564558,0.18972,2639.8,2638.5,3.93128694]
[1769849566057,0.18972,2639.8,2638.5,3.9351142]
[1769849566958,0.18972,2639.8,2638.7,3.92857384]
[1769849567161,0.18972,2639.8,2638.7,3.9324011]